Cogmind - Beta 16.1 @@@ ROGUE MODE // 2026.02.14 @ 21:38:12 // Winter2019/RPGLIKE Player: badjay Result: Destroyed by C-17 Slicer with Blade Saw Performance ------------- Evolutions (2) 1000 Regions Visited (3) 600 Robots Destroyed (39) 195 Value Destroyed (1066) 1066 Prototype IDs (8) 160 Alien Tech Used (0) 0 Bonus (311) 311 TOTAL SCORE: 3332 Bonus ------- Pacifist 200 High Alert Combat Kills 111 Cogmind --------- Core Integrity 0/600 Matter 300/300 Energy 120/160 System Corruption 0% Temperature Hot (227) Movement Flying (26) Location -8/Materials Parts ------- > --- POWER (1) -------- Light Nuclear Core > --- PROPULSION (4) --- Cesium-ion Thruster Cesium-ion Thruster Cesium-ion Thruster Surge Thruster > --- UTILITY (3) ------ Targeting Computer Targeting Computer Targeting Computer > --- WEAPON (2) ------- Arc Projector > --- INVENTORY (1) ---- Protomatter-22 Peak State ------------ > --- POWER ------------ Light Nuclear Core > --- PROPULSION ------- Cesium-ion Thruster Cesium-ion Thruster Cesium-ion Thruster Cesium-ion Thruster > --- UTILITY ---------- Targeting Computer Targeting Computer Targeting Computer > --- WEAPON ----------- Heavy EM Shotgun Heavy Particle Gun > --- INVENTORY -------- Protomatter [Rating: 26] Favorites ----------- Power Light Nuclear Core Engine Light Ion Engine Power Core Light Nuclear Core Propulsion Cesium-ion Thruster Flight Unit Cesium-ion Thruster Utility Targeting Computer Processor Targeting Computer Weapon Advanced Beam Cannon Energy Gun EM Pulse Gun Energy Cannon Advanced Beam Cannon Launcher Advanced EMP Blaster Build | -11 -10 -9 -8 ------- Run | Yrd Mat Mat Mat Slots Evolved 6 | . 2 4 . Power . | . . . . Propulsion 3 | . . 3 . Utility 2 | . 2 . . Weapon 1 | . . 1 . Parts Attached 26 | . 5 14 7 Power 2 | . . 2 . Engine 1 | . . 1 . Core 1 | . . 1 . Reactor . | . . . . Propulsion 8 | . 1 6 1 Treads . | . . . . Leg . | . . . . Wheel . | . . . . Hover . | . . . . Flight 8 | . 1 6 1 Utility 3 | . 3 . . Device . | . . . . Storage . | . . . . Processor 3 | . 3 . . Hackware . | . . . . Protection . | . . . . Artifact . | . . . . Weapon 13 | . 1 6 6 Energy Gun 9 | . 1 3 5 Energy Cannon 3 | . . 3 . Ballistic Gun . | . . . . Ballistic Cannon . | . . . . Launcher 1 | . . . 1 Special Weapon . | . . . . Impact Weapon . | . . . . Slashing Weapon . | . . . . Piercing Weapon . | . . . . Special Melee Weapon . | . . . . Unidentified Prototypes 6 | . . 3 3 Parts Lost . | . . . . Power . | . . . . Propulsion . | . . . . Utility . | . . . . Weapon . | . . . . Highest Loss Streak . | . . . . To Critical Strikes . | . . . . Average Backups . | . . . . Power . | . . . . Propulsion . | . . . . Utility . | . . . . Weapon . | . . . . Tool/Special . | . . . . Unused Backups . | . . . . Power . | . . . . Propulsion . | . . . . Utility . | . . . . Weapon . | . . . . Tool/Special . | . . . . Average Slot Usage (%) 87 | . 34 92 96 Core 5 | . . 5 10 Flight 23 | . . 20 39 Processor 36 | . 27 40 30 Energy Gun 12 | . 7 12 13 Energy Cannon 8 | . . 11 3 Peak Build Rating 26 | . 5 24 26 Average Rating 12 | . 2 10 24 On Entrance 7 | . . 5 24 Avg Prop Armor Cover (%) . | . . . . Naked Turns 28 | . 28 . . Heaviest Build 15 | . 2 13 15 Greatest Support 25 | 3 4 25 25 Greatest Overweight (x) . | . . . . Average Overweight (x) . | . . . . Largest Inventory Capacity 1 | . . 1 1 Average Capacity . | . . . 1 Most Carried 1 | . . 1 1 Average Carried . | . . . 1 Final Capacity 1 | . . 1 1 Final Carried 1 | . . 1 1 Class Distribution -------------------- 62% | Hacker-Mutant 27% | Hacker-Sprinter 10% | Mutant Dominant Class ---------------- Mutant | -10/Materials Hacker-Mutant | -9/Materials Hacker-Sprinter | -8/Materials Resources | -11 -10 -9 -8 ----------- Run | Yrd Mat Mat Mat Matter Collected 500 | 200 . 160 140 Remotely . | . . . . Salvage Created 1147 | . . 689 458 Parts 94 | . . 57 37 Haulers Intercepted . | . . . . Recyclers Shooed 2 | . . . 2 Parts Field Recycled . | . . . . Retrieved Matter . | . . . . Parts Self-Destructed . | . . . . Prevented . | . . . . Parts Restored . | . . . . Kills | -11 -10 -9 -8 ------- Run | Yrd Mat Mat Mat Combat Hostiles Destroyed 34 | . . 21 13 Guns 19 | . . 9 10 Cannons 9 | . . 9 . AOE 4 | . . 1 3 Classes Destroyed 7 | . . 5 2 Worker 1 | . . . 1 Watcher 4 | . . 2 2 Swarmer 10 | . . 5 5 Cutter 4 | . . . 4 Grunt 10 | . . 10 . Duelist 1 | . . 1 . Sentry 9 | . . 5 4 Best Kill Streak 9 | . . 4 9 Combat Bots Only 5 | . . 4 5 Max Kills in Single Turn 2 | . . 2 2 Gunslinging 1 | . . . 1 Exploded 2 | . . 1 2 Melee . | . . . . Uniques/NPCs Destroyed . | . . . . Combat | -11 -10 -9 -8 -------- Run | Yrd Mat Mat Mat Hostile Shots Fired 177 | . . 116 61 Missed 78 | . . 54 24 Hits 99 | . . 62 37 Melee 18 | . . 6 12 Projectile 81 | . . 56 25 Critical Strikes 6 | . . . 6 Damage Taken 1648 | . . 850 798 Core 1449 | . . 738 711 Absorbed by Shields . | . . . . Redirected to Core 676 | . . 378 298 Core Remaining (%) 97 | 100 100 91 . Volleys Fired 81 | . 3 51 27 Largest 2 | . 1 2 2 Hottest 136 | . 50 136 110 Shots Fired 130 | . 3 82 45 Gun 100 | . 3 54 43 Cannon 28 | . . 28 . Launcher 2 | . . . 2 Special . | . . . . Kinetic . | . . . . Thermal 61 | . 3 46 12 Explosive . | . . . . Electromagnetic 69 | . . 36 33 Robot Hit Streak 11 | . . 11 8 Robot Miss Streak 5 | . 3 2 5 Penetration Max . | . . . . Secondary Targets 6 | . . 4 2 Max Gunslinging Chain 1 | . . 1 1 Shots Hit Robots 92 | . . 62 30 Core Hits 55 | . . 29 26 Critical Kills . | . . . . Critical Parts Destroyed . | . . . . Critical Strikes 4 | . . 4 . Burn 4 | . . 4 . Melee Attacks . | . . . . Impact . | . . . . Slashing . | . . . . Piercing . | . . . . Sneak Attacks . | . . . . Combat Hostiles . | . . . . Follow-up Attacks . | . . . . Damage Inflicted 1871 | . . 1001 870 Guns 1049 | . . 543 506 Cannons 396 | . . 396 . Explosions 426 | . . 62 364 Melee . | . . . . Ramming . | . . . . Kinetic . | . . . . Thermal 1049 | . . 634 415 Explosive . | . . . . Electromagnetic 822 | . . 367 455 Impact . | . . . . Slashing . | . . . . Piercing . | . . . . Highest Corruption . | . . . . Average Corruption . | . . . . Corruption Purged . | . . . . Corruption Blocked . | . . . . Overload Shots . | . . . . Overflow Damage 16 | . . 10 6 Projectiles 10 | . . 10 . Explosions 6 | . . . 6 Melee . | . . . . Knockbacks . | . . . . Impact . | . . . . Kinetic . | . . . . Secondary . | . . . . Self-Inflicted Damage 167 | . . . 167 Shots 5 | . . . 5 Rammed . | . . . . Targets Rammed . | . . . . Kicked . | . . . . Crushed . | . . . . Highest Temperature 473 | . . 473 446 Average Temperature 147 | . . 89 229 Received Heat Transfer 345 | . . 237 108 Effects 10 | . . 2 8 Shutdowns 3 | . . 2 1 Energy Bleed 2 | . . . 2 Interference 4 | . . . 4 Damage (minor) 1 | . . . 1 Siege Activations . | . . . . Martial Activations . | . . . . Shielding Activations . | . . . . Robots Disrupted 1 | . . . 1 Combat Hostiles 1 | . . . 1 Robots Corrupted . | . . . . Combat Hostiles . | . . . . Parts Fried 3 | . . 1 2 Impact Corruptions . | . . . . Robots Melted 2 | . . 2 . Combat Hostiles 2 | . . 2 . Parts Melted 8 | . . 8 . Heat Transferred 2387 | . . 1691 696 Parts Sabotaged . | . . . . Parts Stolen . | . . . . Parts Stripped . | . . . . Power Chain Reactions 5 | . . 1 4 Alert | -11 -10 -9 -8 ------- Run | Yrd Mat Mat Mat Maximum Alert Level 2 | . . 2 2 Low Security (%) 34 | 100 100 35 . Level 1 28 | . . 18 68 Level 2 37 | . . 45 31 Level 3 . | . . . . Level 4 . | . . . . Level 5 . | . . . . High Security . | . . . . Max Security . | . . . . Peak Influence 549 | . 15 549 481 Initial 221 | . . . 221 Average 277 | . 4 301 339 Influence Increases 1401 | . 24 867 510 Destroy 0b10 Robot/C 680 | . . 420 260 Destroy 0b10 Robot/NC 25 | . . 10 15 Destroy Leader 168 | . . 104 64 Successful Hack 52 | . 9 16 27 Disable Machine 15 | . . . 15 Destroy Structure 11 | . . 2 9 Partial Spotted 60 | . 15 30 15 Lose Combat Pursuer 390 | . . 285 105 Influence Decreases 920 | . 24 342 554 Entered New Map 304 | . . . 304 Time Decay 366 | . 24 242 100 Search Patrol Dispatched 100 | . . 100 . Purge Threat 150 | . . . 150 Squads Dispatched 7 | . . 1 6 Investigation 2 | . . . 2 Extermination . | . . . . Reinforcement 5 | . . 1 4 Assault . | . . . . Garrison . | . . . . Intercept . | . . . . Searches Triggered 1 | . . 1 . Construction Impeded . | . . . . Haulers Reinforced . | . . . . Active Scanning Responses . | . . . . Cargo Convoy Interrupts . | . . . . Stealth | -11 -10 -9 -8 --------- Run | Yrd Mat Mat Mat Distress Signals 7 | . . 4 3 Communications Jammed . | . . . . Distress Signals . | . . . . Times Spotted 76 | . 4 44 28 Peak Tracking Total 9 | . 4 9 9 Tactical Retreats 10 | . . 7 3 Traps | -11 -10 -9 -8 ------- Run | Yrd Mat Mat Mat Traps Triggered 3 | . . . 3 Indirectly 1 | . . . 1 Trap Hack Attempts . | . . . . Triggered . | . . . . Disarmed . | . . . . Reprogrammed . | . . . . Reused . | . . . . Traps Extracted . | . . . . Installed . | . . . . Triggered . | . . . . Machines | -11 -10 -9 -8 ---------- Run | Yrd Mat Mat Mat Machines Disabled 1 | . . . 1 Max in Single Turn 1 | . . . 1 Machines Repaired . | . . . . Machines Dismantled . | . . . . Machines Sabotaged . | . . . . Overloaded Fab Kills . | . . . . Hacking | -11 -10 -9 -8 --------- Run | Yrd Mat Mat Mat Machines Accessed 13 | . 2 5 6 Terminals 13 | . 2 5 6 Fabricators . | . . . . Repair Stations . | . . . . Recycling Units . | . . . . Scanalyzers . | . . . . Garrison Access . | . . . . Total Hacks 61 | . 7 19 35 Successful 31 | . 3 9 19 Failed 30 | . 4 10 16 Catastrophic 4 | . . . 4 Database Lockouts . | . . . . Manual 39 | . 7 12 20 Terminals 61 | . 7 19 35 Fabricators . | . . . . Repair Stations . | . . . . Recycling Units . | . . . . Scanalyzers . | . . . . Garrison Access . | . . . . Terminal Hacks 18 | . 1 4 13 Record 1 | . . . 1 Prototype ID Bank 3 | . . . 3 Level Access Points 2 | . . 1 1 Branch Access Points 1 | . . . 1 Terminal Index 3 | . 1 1 1 Alert Level 1 | . . . 1 Unreport Threat 1 | . . . 1 Assault Status 2 | . . . 2 Registered Components 1 | . . . 1 Registered Prototypes 1 | . . 1 . Zone Layout 2 | . . 1 1 Fabricator Hacks . | . . . . Repair Station Hacks . | . . . . Recycling Unit Hacks . | . . . . Scanalyzer . | . . . . Garrison Access Hacks . | . . . . Unauthorized Hacks 13 | . 2 5 6 Terminals 13 | . 2 5 6 Track 2 | . . 1 1 Botnet 9 | . 2 4 3 Disrupt 1 | . . . 1 Operators 1 | . . . 1 Fabricators . | . . . . Repair Stations . | . . . . Recycling Units . | . . . . Scanalyzers . | . . . . Garrison Access . | . . . . Data Cores Recovered . | . . . . Used . | . . . . Hacking Detections 13 | . 2 5 6 Full Trace Events 1 | . . . 1 Feedback Events . | . . . . Feedback Blocked . | . . . . Robot Schematics Acquired . | . . . . Robots Built . | . . . . Authchips . | . . . . Time . | . . . . Total Robot Build Rating . | . . . . Part Schematics Acquired . | . . . . Parts Built . | . . . . Authchips . | . . . . Time . | . . . . Total Part Build Rating . | . . . . Part Studies Acquired . | . . . . Parts Repaired . | . . . . Time . | . . . . Parts Recycled . | . . . . Recycled Matter . | . . . . Retrieved Matter . | . . . . Retrieved Components . | . . . . Parts Scanalyzed . | . . . . Part Schematics Acquired . | . . . . Parts Damaged . | . . . . Bothacking | -11 -10 -9 -8 ------------ Run | Yrd Mat Mat Mat Used RIF Installer . | . . . . Robots Hacked . | . . . . Non-combat . | . . . . Combat . | . . . . Robot Hacks Applied . | . . . . Relay Couplers Released . | . . . . Fabnet Peak Effective % . | . . . . Robots Rewired . | . . . . Allies Hacked . | . . . . Hacks Repelled . | . . . . Allies | -11 -10 -9 -8 -------- Run | Yrd Mat Mat Mat Total Allies . | . . . . Largest Group . | . . . . Highest-Rated Group . | . . . . Highest-Rated Ally . | . . . . Total Orders . | . . . . Ally Attacks . | . . . . Total Damage . | . . . . Kills . | . . . . Allies Corrupted . | . . . . Allies Melted . | . . . . Intel | -11 -10 -9 -8 ------- Run | Yrd Mat Mat Mat Active Infowar (turns) . | . . . . Robot Analysis Total . | . . . . Derelict Logs Recovered . | . . . . Drone Launches . | . . . . Drone Recoveries . | . . . . Exploration | -11 -10 -9 -8 ------------- Run | Yrd Mat Mat Mat Turns Passed 880 | 15 83 566 216 Spaces Moved 1425 | 30 138 796 461 Core 164 | 30 134 . . Treads . | . . . . Legs . | . . . . Wheels . | . . . . Hover . | . . . . Flight 1261 | . 4 796 461 Fastest Speed 26 | 50 40 26 26 Average Speed 35 | 50 49 37 26 Slowest Speed 50 | 50 50 40 29 Overloaded Moves . | . . . . Propulsion Burnouts . | . . . . Robots Hopped 11 | . . 6 5 Potential Cave-ins . | . . . . Cave-ins Triggered . | . . . . Exploration Rate (%) 35 | 4 31 60 47 Regions Visited 3 Branch Regions . Pre-discovered Areas . | . . . . Known Exits Taken 1 | . . 1 . Unknown Exits Taken 2 | 1 1 . . Scrap Searched . | . . . . Spaces Dug . | . . . . Terrain Destroyed 8 | . . . 8 Melee . | . . . . Projectile . | . . . . AOE 8 | . . . 8 Terrain Rammed . | . . . . Walls Destroyed . | . . . . Machines Disabled . | . . . . Actions | -11 -10 -9 -8 --------- Run | Yrd Mat Mat Mat Total 1652 | 29 146 972 505 Wait 72 | . 1 69 2 Move 1400 | 29 137 783 451 Hop 11 | . . 6 5 Pick Up 1 | . . 1 . Fast Attach 29 | . 5 15 9 Attach . | . . . . Detach . | . . . . Swap . | . . . . Drop 14 | . . 10 4 Fire 81 | . 3 51 27 Melee . | . . . . Ram . | . . . . Kick . | . . . . Crush . | . . . . Escape Stasis . | . . . . Rewire . | . . . . Trap . | . . . . Miscellaneous 44 | . . 37 7 Route ------- -11/Scrapyard -10/Materials -9/Materials (discovered 4 exits: *Mat x3 / [*Min]) -8/Materials (discovered 4 exits: Fac x3 / Sto) History --------- Turn | Location | Event 5 | -11/Scrapyard | Discovered new exit (range 15) 16 | -11/Scrapyard | Entered Materials 45 | -10/Materials | Upgraded with Utility slot (x1) 45 | -10/Materials | Upgraded with Utility slot (x1) 89 | -10/Materials | Discovered new exit (range 16) 99 | -10/Materials | Entered another Materials area 101 | -9/Materials | Reached level 2 195 | -9/Materials | Upgraded with Weapon slot (x1) 281 | -9/Materials | Discovered new exit (range 5) 341 | -9/Materials | Reached level 3 348 | -9/Materials | Upgraded with Propulsion slot (x1) 393 | -9/Materials | Build established: Hacker-Mutant 421 | -9/Materials | Discovered new exit (range 7) 490 | -9/Materials | Identified exit to Materials 499 | -9/Materials | Search patrols dispatched 651 | -9/Materials | Upgraded with Propulsion slot (x2) 665 | -9/Materials | Entered another Materials area 667 | -8/Materials | Reached level 4 731 | -8/Materials | Reached level 5 768 | -8/Materials | Core integrity fell below 50% 788 | -8/Materials | Identified exit to Storage 792 | -8/Materials | Identified exit to Factory 854 | -8/Materials | Core integrity fell below 20% 856 | -8/Materials | Reached level 6 881 | -8/Materials | Destroyed by C-17 Slicer with Blade Saw Last Messages --------------- 00856_ Heat Sink fried. 00856_ Y-45 Defender destroyed. 00857_ Arc Projector severed. 00861_ C-17 Slicer knocked back. 00862_ Acquired 10 matter. 00862_ Extracted 20 matter. 00869_ C-17 Slicer knocked back. 00871_ The unstable cave ceiling collapses. 00873_ Connecting with Terminal... >>Trojan(Disrupt) Trojan loaded successfully. Testing... Disruption routine running. >>Enumerate(Assaults) Retrieving latest reported positions... No active assault squads found. >>Alert(Check) Current Alert Level: 2-H 00873_ ALERT: Suspicious activity at Terminal M004. Dispatching Investigation squad. Map ----- +----------------------------------------------------+ | | | | | | | | | | | | | | | | | | | | | | | | | | | | | | | | | | | | | | | | | | | | | | | | | ????###########?????????????????? | | ????# @c T ########??######### | | ????# ]c # # | | ????# # """ # / | | ????# # """ # ! | | ????####+######// """ # | | ???????# #????#/ # """ "" | | ???????# #????# # """ S"" | | ???????# #?????? ! # """ "" | | ???????# #???????? ?# | | ???????# #???#######+########+### | | ???????# ###?!![# | | ???????# # !![# ## | | ???????+ # !![# #? | | ???????# + ############ #? | | ???????# # !#??????????# # | | ???????# # #??????????# # | | ?????? ? !#??????????# + | | ????? # ?####??????????# # | | ???? #?#####????????# # | | ???##### # #????????# #? | | ???????# !!! #????????# #? | | ??!????# # !! #????????# # | | # # # !! #????????# # | | # + + #????????# + | | # # # % #????????# # | +----------------------------------------------------+ Best States ------------- Heat Dissipation 31 Energy Generation 14 Energy Capacity 160 Matter Stores 300 Matter Capacity 300 Sight Range 16 Terrain Scan Density 10 Evasion (%) 64 Targeting Accuracy 15 Offensive Hacking 10 Defensive Hacking 10 Item Schematics ----------------- None Robot Schematics ------------------ None Fabricated ------------ Nothing Repaired ---------- Nothing Studied --------- None Alien Tech Used ----------------- None Achievements -------------- Suspicious Challenges ------------ None RPGLIKE | -11 -10 -9 -8 --------- Run | Yrd Mat Mat Mat Levels Raised 5 | . . 2 3 XP Earned 10572 | 3000 100 4215 3257 XP Spent 5900 | . 1300 4600 . Upgrades 13 | . 2 11 . Propulsion Slot 3 | . . 3 . Utility Slot 2 | . 2 . . Weapon Slot 1 | . . 1 . Heat Dissipation 1 | . . 1 . Mass Support 1 | . . 1 . Inventory Capacity 1 | . . 1 . Hack Attack % 2 | . . 2 . Hack Defense % 2 | . . 2 . Protomatter Created 449 | . . 335 114 Integrity Restored 917 | . . 758 159 Core 845 | . . 686 159 Parts 72 | . . 72 . Protomatter Decayed 28 | . . 19 9 Game ------ Seed TrackerGhostWheel Manual? 0 Play Time 00:21:31 Cumulative 171.8 hours Start 2026.02.14 @ 19:11:33 End 2026.02.14 @ 21:38:12 Sessions 3 Manual Loads 0 Difficulty Rogue Special Mode Winter2019/RPGLIKE Game No. 181 Rogue 181 Adventurer 0 Explorer 0 Win Type - Total 13 Types 11/0/0/1/0/0/1/0/0/0 Lore% 42 Gallery% 53 Achievement% 38 Wizard Run 0 Options --------- Layout 1 ASCII 0 Keyboard 0 Movement Numpad Keybinds 0 Fullscreen 1 Font 24/Smallcaps Map View 50x35 Zoom Use 0% Tactical HUD 1 Map Filters NONE Filters NONE Steam 1 RUN: 204161a6-7954-48f8-a387-88404bb0aa49